bitfinex-derivatives/quotes_BTCF0:USTF0_20241210
["timestamp","ask_amount","ask_price","bid_price","bid_amount"]
[1733866053896,0.051633,96774.0,96773.0,0.002]
[1733866054301,0.412433,96774.0,96773.0,0.001]
[1733866054603,0.05164,96761.0,96760.0,0.05164]
[1733866055591,0.05164,96761.0,96760.0,0.06190088]
[1733866055994,0.05164,96761.0,96760.0,0.06390088]
[1733866056693,0.05164,96761.0,96760.0,0.01226088]
[1733866057396,0.05164,96761.0,96760.0,0.06390088]
[1733866057706,0.05164,96761.0,96760.0,0.06690088]
[1733866058295,0.05164,96761.0,96760.0,0.06490088]
[1733866058497,0.05164,96761.0,96760.0,0.06690088]
[1733866058895,0.16319034,96768.0,96767.0,0.051636]
[1733866058896,0.09259034,96768.0,96767.0,0.051636]
[1733866059093,0.36132001,96774.0,96760.0,0.01526088]
[1733866059094,0.50509567,96774.0,96760.0,0.01026088]
[1733866059294,0.3608,96774.0,96773.0,0.051633]
[1733866059493,0.09267692,96776.0,96775.0,0.051632]
[1733866059693,0.09267692,96776.0,96769.0,0.3608]
[1733866059694,0.051631,96777.0,96776.0,0.051632]
[1733866060099,0.09267692,96781.0,96770.0,0.051635]
[1733866060304,0.051629,96781.0,96780.0,0.051629]
[1733866061203,0.051629,96781.0,96777.0,0.3608]
[1733866061204,0.14585328,96788.0,96777.0,0.3608]
[1733866061405,0.051626,96788.0,96777.0,0.54424197]
[1733866061604,0.09267692,96790.0,96777.0,0.54424197]
[1733866061605,0.09267692,96790.0,96789.0,0.051625]
[1733866061791,0.09267692,96790.0,96786.0,0.3608]
[1733866061792,0.09267692,96793.0,96786.0,0.3608]
[1733866062100,0.3608,96795.0,96793.0,0.051623]
[1733866062896,0.09267211,96795.0,96793.0,0.051623]
[1733866063191,0.14429411,96795.0,96793.0,0.051623]
[1733866063903,0.14529411,96795.0,96793.0,0.052623]
[1733866064306,0.14529411,96795.0,96793.0,0.06273204]
[1733866064307,0.09267211,96794.0,96793.0,0.06273204]
[1733866064511,0.052622,96795.0,96793.0,0.06273204]
[1733866064512,0.14629411,96795.0,96793.0,0.06273204]
[1733866065504,0.001,96794.0,96793.0,0.06273204]
[1733866065709,0.002,96794.0,96793.0,0.06273204]
[1733866066199,0.001,96794.0,96793.0,0.06273204]
[1733866066802,0.002,96794.0,96793.0,0.06273204]
[1733866067295,0.09367211,96794.0,96793.0,0.06273204]
[1733866067606,0.001,96794.0,96793.0,0.06273204]
[1733866067998,0.002,96794.0,96793.0,0.06273204]
[1733866069501,0.1,96800.0,96793.0,0.01110904]
[1733866069705,0.1,96800.0,96799.0,0.051619]
[1733866070202,0.05,96800.0,96799.0,0.051619]
[1733866070511,0.12355488,96817.0,96796.0,0.3608]
[1733866070512,0.051612,96813.0,96807.0,0.051615]
[1733866070701,0.051613,96811.0,96807.0,0.051615]
[1733866070899,0.051614,96810.0,96807.0,0.051615]
[1733866071502,0.16047211,96815.0,96806.0,0.3608]
[1733866071806,0.00052001,96823.0,96806.0,0.3608]
[1733866071807,0.00052001,96823.0,96821.0,0.051607]
[1733866072002,0.00052001,96823.0,96822.0,0.3608]
[1733866072198,0.00104002,96823.0,96822.0,0.3608]
[1733866072402,0.00052001,96823.0,96822.0,0.3608]
[1733866072610,7.3e-07,96862.0,96861.0,0.051586]
[1733866072801,0.33867424,96893.0,96861.0,0.051586]
[1733866072802,0.01037018,96897.0,96896.0,0.051568]
[1733866072996,0.3608,96942.0,96896.0,1.08723843]
[1733866072997,0.0724,96942.0,96896.0,1.08723843]
[1733866073308,0.0724,96942.0,96934.0,0.3608]
[1733866073496,0.051544,96941.0,96934.0,0.3608]
[1733866073795,0.3608,96948.0,96920.0,0.15410615]
[1733866073796,0.051554,96921.0,96920.0,0.18296379]
[1733866073999,0.3608,96948.0,96914.0,0.18296379]
[1733866074000,0.051558,96915.0,96914.0,0.18296379]
[1733866074202,0.05156,96911.0,96908.0,0.18296379]
[1733866074411,0.3608,96934.0,96905.0,0.3608]
[1733866074412,0.3608,96934.0,96907.0,0.18296379]
[1733866074614,0.3608,96934.0,96906.0,0.3608]
[1733866074615,0.3608,96924.0,96910.0,0.18296379]
[1733866074801,0.3608,96924.0,96906.0,0.3608]
[1733866074999,0.051562,96908.0,96906.0,0.3608]
[1733866075510,0.051562,96908.0,96907.0,0.002]
[1733866075511,0.051561,96908.0,96907.0,0.002]
[1733866075814,0.051561,96908.0,96907.0,0.004]
[1733866076110,0.051561,96908.0,96907.0,0.002]
[1733866076501,0.051561,96908.0,96906.0,0.003]
[1733866076702,0.051561,96908.0,96892.0,0.00154811]
[1733866076703,0.051569,96893.0,96892.0,0.00154811]
[1733866076903,0.3608,96902.0,96892.0,0.00154811]
[1733866077903,0.3608,96902.0,96860.0,0.24372867]
[1733866077904,0.051587,96859.0,96858.0,0.18296379]
[1733866078103,0.15328091,96877.0,96855.0,0.3608]
[1733866078402,0.3608,96881.0,96863.0,0.3608]
[1733866078903,0.3608,96873.0,96848.0,0.02017051]
[1733866079109,0.3608,96873.0,96856.0,0.3608]
[1733866079303,0.3608,96873.0,96848.0,0.07176351]
[1733866079304,0.3608,96873.0,96853.0,0.3608]
[1733866079500,0.051588,96858.0,96853.0,0.3608]
[1733866080415,0.051589,96857.0,96853.0,0.3608]
[1733866080603,0.051589,96857.0,96856.0,0.002]
[1733866082412,0.05159,96854.0,96853.0,0.006]
[1733866082711,0.41239,96854.0,96853.0,0.006]
[1733866082906,0.41239,96854.0,96853.0,0.002]
[1733866083105,0.003,96857.0,96856.0,0.001]
[1733866083300,0.003,96857.0,96856.0,0.3618]
[1733866083503,0.0735,96872.0,96856.0,0.001]
[1733866083504,0.051588,96859.0,96856.0,0.001]
[1733866083709,0.3608,96870.0,96856.0,0.001]
[1733866083710,0.051588,96858.0,96856.0,0.001]
[1733866083911,0.051588,96858.0,96853.0,0.3608]
[1733866084113,0.3608,96870.0,96853.0,0.3608]
[1733866084316,0.051585,96864.0,96861.0,0.3608]
[1733866084803,0.3608,96870.0,96861.0,0.3608]
[1733866084804,0.051586,96863.0,96861.0,0.3608]
[1733866085209,0.3608,96870.0,96861.0,0.3608]
[1733866085210,0.3608,96870.0,96861.0,0.412386]
[1733866085407,0.3608,96870.0,96869.0,0.3608]
[1733866085408,0.051582,96870.0,96869.0,0.3608]
[1733866086110,0.051583,96868.0,96866.0,0.051584]
[1733866086312,0.0735,96872.0,96870.0,0.051581]
[1733866086508,0.00010133,96880.0,96876.0,0.051578]
[1733866087319,0.051577,96879.0,96876.0,0.051578]
[1733866087709,0.00010133,96880.0,96869.0,0.06393415]
[1733866087917,0.051579,96874.0,96869.0,0.01135215]
[1733866088113,0.1345,96877.0,96869.0,0.01135215]
[1733866088415,0.051579,96874.0,96872.0,0.05158]
[1733866089612,0.1335,96877.0,96867.0,0.3608]
[1733866089917,0.051586,96862.0,96857.0,0.3608]
[1733866090224,0.051586,96862.0,96860.0,0.051587]
[1733866090420,0.051583,96868.0,96857.0,0.3608]
[1733866090621,0.051583,96867.0,96864.0,0.051585]
[1733866090917,0.3608,96871.0,96857.0,0.3608]
[1733866090918,0.051588,96858.0,96857.0,0.3608]
[1733866091311,0.051586,96862.0,96861.0,0.051586]
[1733866091713,0.0673,96866.0,96865.0,0.051584]
[1733866091914,0.0673,96866.0,96860.0,0.003]
[1733866091915,0.051583,96868.0,96867.0,0.051583]
[1733866093318,0.05158,96874.0,96867.0,0.3608]
[1733866093831,0.05158,96874.0,96873.0,0.05158]
[1733866094316,0.00010133,96880.0,96867.0,0.3618]
[1733866094519,0.00010133,96880.0,96879.0,0.412377]
[1733866094520,0.05167733,96880.0,96879.0,0.412377]
[1733866095917,0.05167733,96880.0,96879.0,0.3608]
[1733866096122,0.00010133,96880.0,96879.0,0.412377]
[1733866096316,0.00510133,96880.0,96879.0,0.412377]
[1733866096813,0.00610133,96880.0,96879.0,0.412377]
[1733866097215,0.051572,96888.0,96879.0,0.3608]
[1733866097518,0.051572,96888.0,96887.0,0.412372]
[1733866098018,0.0714,96895.0,96894.0,0.051569]
[1733866098219,0.0714,96895.0,96894.0,0.412369]
[1733866098415,0.0714,96895.0,96894.0,0.59453648]
[1733866098610,0.051564,96903.0,96900.0,0.051566]
[1733866099021,0.051561,96910.0,96909.0,0.051561]
[1733866099414,0.00154839,96918.0,96907.0,0.3608]
[1733866099615,0.00154839,96918.0,96917.0,0.051557]
[1733866100717,0.00254839,96918.0,96917.0,0.051557]
[1733866101116,0.001,96918.0,96917.0,0.051557]
[1733866101521,0.0682,96929.0,96928.0,0.051551]
[1733866101714,0.0682,96929.0,96928.0,0.412351]
[1733866101921,0.0723,96937.0,96928.0,0.3608]
[1733866102119,0.0723,96937.0,96936.0,0.412346]
[1733866102821,0.00154804,96949.0,96948.0,0.05154]
[1733866103728,0.051537,96955.0,96936.0,0.3618]
[1733866103729,0.051537,96955.0,96951.0,0.051538]
[1733866104324,0.05154,96949.0,96946.0,0.051541]
[1733866104625,0.05154,96949.0,96944.0,0.3608]
[1733866104626,0.051536,96957.0,96951.0,0.051538]
[1733866105221,0.052539,96949.0,96948.0,0.001]
[1733866105615,0.056539,96949.0,96948.0,0.002]
[1733866106016,0.051546,96937.0,96936.0,0.3608]
[1733866106331,0.15328091,96960.0,96923.0,0.3608]
[1733866106332,0.051544,96940.0,96938.0,0.051545]
[1733866106521,0.3608,96943.0,96932.0,0.3608]
[1733866107331,0.051547,96935.0,96933.0,0.0051582]
[1733866107721,0.066,96934.0,96933.0,0.0051582]
[1733866108733,0.005,96937.0,96936.0,0.051546]
[1733866109022,0.051539,96950.0,96949.0,0.051539]
[1733866109818,0.051541,96946.0,96945.0,0.3608]
[1733866110018,0.051541,96946.0,96941.0,0.051544]
[1733866110019,0.051543,96942.0,96941.0,0.051544]
[1733866110214,0.3608,96944.0,96933.0,0.0051582]
[1733866110424,0.051539,96950.0,96938.0,0.051545]
[1733866110425,0.051545,96939.0,96938.0,0.051545]
[1733866111733,0.051547,96934.0,96933.0,0.0668755]
[1733866113127,0.051547,96934.0,96933.0,0.0688755]
[1733866113532,0.051547,96934.0,96933.0,0.0708755]
[1733866114234,0.051547,96934.0,96933.0,0.0091582]
[1733866114739,0.051547,96934.0,96913.0,0.23397754]
[1733866114740,0.051564,96903.0,96902.0,0.24150806]
[1733866114941,0.051564,96903.0,96902.0,0.00515985]
[1733866116333,0.30186783,96908.0,96893.0,0.3608]
[1733866116629,0.051565,96901.0,96893.0,0.3608]
[1733866117429,0.051565,96901.0,96880.0,0.3608]
[1733866117637,0.051565,96901.0,96879.0,0.051577]
[1733866117826,0.051565,96901.0,96893.0,0.3608]
[1733866118129,0.051565,96901.0,96888.0,0.051572]
[1733866118340,0.051565,96901.0,96890.0,0.051571]
[1733866118633,0.051565,96901.0,96881.0,0.3608]
[1733866118634,0.051565,96901.0,96900.0,0.00108266]
[1733866118821,0.058565,96901.0,96900.0,0.05364866]
[1733866119434,0.051557,96917.0,96916.0,0.051555]
[1733866119639,0.051557,96917.0,96916.0,0.412355]
[1733866119823,0.051554,96922.0,96916.0,0.3608]
[1733866120025,0.051554,96922.0,96921.0,0.051554]
[1733866120228,0.11875,96929.0,96928.0,0.051551]
[1733866121825,0.12775,96929.0,96928.0,0.052551]
[1733866122920,0.06055,96929.0,96928.0,0.052551]
[1733866123130,0.009,96929.0,96928.0,0.052551]
[1733866123435,0.013,96929.0,96928.0,0.052551]
[1733866124027,0.0634,96943.0,96942.0,0.051543]
[1733866124928,0.114943,96943.0,96942.0,0.051543]
[1733866125234,0.120943,96943.0,96942.0,0.052543]
[1733866125430,0.129943,96943.0,96942.0,0.053543]
[1733866125831,0.066543,96943.0,96942.0,0.053543]
[1733866126230,0.061543,96943.0,96942.0,0.052543]
[1733866127630,0.422343,96943.0,96942.0,0.001]
[1733866127828,0.060543,96943.0,96942.0,0.001]
[1733866128230,0.060543,96943.0,96925.0,0.3608]
[1733866128231,0.051543,96943.0,96932.0,0.051548]
[1733866128636,0.051548,96933.0,96932.0,0.051548]
[1733866129329,0.051548,96933.0,96932.0,0.054548]
[1733866129740,0.051548,96933.0,96932.0,0.003]
[1733866130837,0.051548,96933.0,96932.0,0.002]
[1733866131140,0.051548,96933.0,96932.0,0.003]
[1733866131535,0.052548,96933.0,96932.0,0.001]
[1733866131731,0.051552,96926.0,96925.0,0.3608]
[1733866132125,0.051552,96926.0,96925.0,0.412352]
[1733866133345,0.051552,96926.0,96925.0,0.3608]
[1733866133543,0.05156,96913.0,96912.0,0.051559]
[1733866133728,0.051561,96909.0,96907.0,0.29307006]
[1733866133929,0.051561,96909.0,96907.0,0.051562]
[1733866135033,0.051561,96909.0,96908.0,0.3608]
[1733866137239,0.051561,96909.0,96908.0,0.001]
[1733866137431,0.412361,96909.0,96908.0,0.001]
[1733866137639,0.051565,96901.0,96900.0,8.266e-05]
[1733866137941,0.412365,96901.0,96900.0,8.266e-05]
[1733866138631,0.3608,96901.0,96900.0,8.266e-05]
[1733866138832,0.01058152,96916.0,96908.0,0.051561]
[1733866138833,0.3608,96909.0,96908.0,0.051561]
[1733866139037,0.41236,96910.0,96908.0,0.051561]
[1733866139239,0.05156,96910.0,96908.0,0.051561]
[1733866139945,0.3608,96920.0,96908.0,0.051561]
[1733866140245,0.051561,96909.0,96908.0,0.051561]
[1733866140636,0.051561,96909.0,96908.0,0.052561]
[1733866140844,0.3608,96920.0,96908.0,0.001]
[1733866141148,0.3608,96939.0,96908.0,0.001]
[1733866141149,0.08074525,96964.0,96951.0,0.23768003]
[1733866141349,0.17163505,97000.0,96993.0,0.051516]
[1733866141537,0.00515469,96999.0,96983.0,0.3608]
[1733866141739,0.00515469,96999.0,96977.0,0.24342508]
[1733866141740,0.14085469,96999.0,96977.0,0.24342508]
[1733866141939,0.21248974,96999.0,96990.0,0.3608]
[1733866142145,0.21248974,96999.0,96998.0,0.3608]
[1733866142960,0.051518,96990.0,96988.0,0.3608]
[1733866143140,0.07163505,96990.0,96988.0,0.3608]
[1733866143544,0.00515469,96999.0,96988.0,0.3608]
[1733866143745,0.00515469,96999.0,96998.0,0.3608]
[1733866144148,0.01115469,96999.0,96998.0,0.3608]
[1733866145052,0.00515469,96999.0,96998.0,0.3608]
[1733866145241,0.01115469,96999.0,96998.0,0.3608]
[1733866146436,0.01415469,96999.0,96998.0,0.3608]
[1733866147041,0.006,96999.0,96998.0,0.3608]
[1733866147251,0.006,96999.0,96998.0,0.3618]
[1733866147441,0.007,96999.0,96998.0,0.3628]
[1733866148057,0.07863505,96999.0,96998.0,0.3628]
[1733866148447,0.07163505,96999.0,96998.0,0.3628]
[1733866148949,0.07163505,96999.0,96998.0,0.3618]
[1733866149347,0.151513,97000.0,96998.0,0.3618]
[1733866149649,0.151513,97000.0,96998.0,0.3608]
[1733866149844,0.22314805,97000.0,96998.0,0.3618]
[1733866151149,0.22314805,97000.0,96998.0,0.3628]
[1733866151451,0.22314805,97000.0,96998.0,0.002]
[1733866151843,0.22314805,97000.0,96972.0,0.3608]
[1733866151844,0.151513,97000.0,96972.0,0.3608]
[1733866152052,0.051522,96982.0,96981.0,0.3608]
[1733866152253,0.051528,96971.0,96970.0,0.3608]
[1733866152557,0.3608,96993.0,96970.0,0.3608]
[1733866152558,0.3608,96985.0,96970.0,0.3608]
[1733866153039,0.051527,96973.0,96970.0,0.3608]
[1733866153346,0.051527,96973.0,96971.0,0.051528]
[1733866153550,0.051503,97017.0,96970.0,0.3608]
[1733866153551,0.3608,96995.0,96981.0,0.051522]
[1733866153754,0.051519,96987.0,96981.0,0.3608]
[1733866154055,0.051519,96987.0,96985.0,0.05152]
[1733866154241,0.1,97000.0,96981.0,0.3608]
[1733866154438,0.051516,96993.0,96989.0,0.3608]
[1733866154646,0.051518,96990.0,96989.0,0.3608]
[1733866154946,0.3608,96990.0,96979.0,0.051524]
[1733866155146,0.3608,96990.0,96977.0,0.3608]
[1733866155147,0.051522,96982.0,96977.0,0.3608]
[1733866155347,0.051522,96982.0,96980.0,0.051523]
[1733866156348,0.051522,96982.0,96981.0,0.051522]
[1733866158148,0.051522,96982.0,96980.0,0.002]
[1733866158149,0.051522,96981.0,96980.0,0.002]
[1733866158850,0.051524,96978.0,96977.0,0.7224]
[1733866159049,0.051524,96978.0,96977.0,0.7216]
[1733866160452,0.051524,96978.0,96977.0,0.7226]
[1733866161051,0.051524,96978.0,96977.0,0.7246]
[1733866162156,0.051524,96978.0,96977.0,0.3638]
[1733866163650,0.051524,96978.0,96977.0,0.002]
[1733866165249,0.412324,96978.0,96977.0,0.002]
[1733866166950,0.412324,96978.0,96977.0,0.001]
[1733866167170,0.412324,96978.0,96977.0,0.002]
[1733866167553,0.412324,96978.0,96977.0,0.001]
[1733866167748,0.412324,96978.0,96977.0,0.002]
[1733866169357,0.051533,96961.0,96958.0,0.31459681]
[1733866169544,0.051537,96953.0,96952.0,0.00011601]
[1733866170057,0.051537,96953.0,96952.0,0.05165401]
[1733866170261,0.051537,96953.0,96952.0,0.42053781]
[1733866170650,0.116129,96968.0,96952.0,0.36899981]
[1733866170955,0.051531,96966.0,96962.0,0.3608]
[1733866171149,0.051531,96966.0,96965.0,0.051531]
[1733866173758,0.052531,96966.0,96965.0,0.057531]
[1733866174055,0.001,96966.0,96965.0,0.3910514]
[1733866174263,0.16847825,96990.0,96974.0,0.051526]
[1733866174264,0.051527,96975.0,96974.0,0.051526]
[1733866174561,0.051527,96975.0,96974.0,0.71680261]
[1733866174765,0.051527,96975.0,96974.0,0.051526]
[1733866175453,0.051527,96975.0,96974.0,0.3915943]
[1733866175758,0.0080922,96986.0,96974.0,0.75284181]
[1733866175958,0.16847825,96990.0,96980.0,0.24369789]
[1733866176151,0.051523,96980.0,96979.0,0.24372244]
[1733866176349,0.051523,96980.0,96975.0,0.35614836]
[1733866176548,0.051524,96979.0,96975.0,0.30462236]
[1733866176748,0.051526,96975.0,96974.0,0.30562236]
[1733866176963,0.051526,96975.0,96974.0,0.001]
[1733866177152,0.051526,96975.0,96974.0,0.64428685]
[1733866177351,0.051526,96975.0,96974.0,0.64628094]
[1733866177548,0.051526,96975.0,96974.0,0.35933792]
[1733866177751,0.051526,96975.0,96974.0,0.39291492]
[1733866177964,0.051526,96975.0,96974.0,0.39191492]
[1733866178360,0.051526,96975.0,96974.0,0.34038892]
[1733866178665,0.051526,96975.0,96974.0,0.64538617]
[1733866178870,0.051526,96975.0,96974.0,0.65464539]
[1733866179161,0.051526,96975.0,96974.0,0.34984877]
[1733866179359,0.051526,96975.0,96974.0,0.31621786]
[1733866179859,0.051526,96975.0,96974.0,0.00925922]
[1733866180052,0.051526,96975.0,96974.0,0.01125922]
[1733866180252,0.051526,96975.0,96974.0,0.003]
[1733866180554,0.051526,96975.0,96974.0,0.053526]
[1733866181249,0.051526,96975.0,96974.0,0.39212582]
[1733866181451,0.051526,96975.0,96974.0,0.75392582]
[1733866181764,0.051526,96975.0,96974.0,0.35967499]
[1733866182170,0.051526,96975.0,96974.0,0.69843716]
[1733866182354,0.051526,96975.0,96974.0,0.054526]
[1733866182856,0.051526,96975.0,96974.0,0.002]
[1733866183056,0.051526,96975.0,96974.0,0.003]
[1733866183252,0.051526,96975.0,96974.0,0.001]
[1733866183459,0.051526,96975.0,96974.0,0.003]
[1733866183856,0.051526,96975.0,96974.0,0.001]
[1733866184058,0.052526,96975.0,96974.0,0.001]
[1733866184656,0.052526,96975.0,96967.0,0.30514899]
[1733866184860,0.001,96975.0,96966.0,0.31337266]
[1733866185057,0.051531,96965.0,96964.0,0.051532]
[1733866185265,0.051531,96965.0,96964.0,0.38996345]
[1733866186971,0.051531,96965.0,96964.0,0.39825761]
[1733866187968,0.051531,96965.0,96964.0,0.40425761]
[1733866188163,0.3608,96976.0,96964.0,0.40425761]
[1733866188360,0.051527,96973.0,96970.0,0.30520798]
[1733866188559,0.051527,96973.0,96969.0,0.30520798]
[1733866188755,0.051529,96969.0,96968.0,0.30520798]
[1733866188955,0.051529,96968.0,96967.0,0.30520798]
[1733866189161,0.051527,96973.0,96967.0,0.30524013]
[1733866189364,0.36940001,96976.0,96971.0,0.24424254]
[1733866189673,0.051527,96972.0,96971.0,0.24424254]
[1733866189863,0.36888,96976.0,96970.0,0.001]
[1733866190072,0.051527,96973.0,96972.0,0.24423899]
[1733866190376,0.051529,96968.0,96967.0,0.002]
[1733866190971,0.051531,96965.0,96962.0,0.3608]
[1733866191172,0.051532,96963.0,96962.0,0.3608]
[1733866191371,0.051532,96963.0,96962.0,0.66604013]
[1733866191967,0.051532,96963.0,96962.0,1.05213049]
[1733866192169,0.051532,96963.0,96962.0,0.74689036]
[1733866193270,0.051532,96963.0,96962.0,0.75089036]
[1733866193467,0.051529,96971.0,96970.0,0.051528]
[1733866193871,0.051529,96969.0,96967.0,0.35691032]
[1733866194062,0.02104868,96975.0,96967.0,0.35691032]
[1733866194063,0.051529,96968.0,96967.0,0.35691032]
[1733866194266,0.051529,96968.0,96967.0,0.38364411]
[1733866194869,0.051529,96968.0,96967.0,0.68901444]
[1733866195065,0.051529,96968.0,96967.0,0.05153]
[1733866195270,0.051529,96968.0,96967.0,0.689007]
[1733866195465,0.051529,96968.0,96967.0,0.38362382]
[1733866195885,0.051529,96968.0,96967.0,0.38562382]
[1733866196466,0.051529,96968.0,96967.0,0.69001221]
[1733866196674,0.051529,96968.0,96967.0,0.05253]
[1733866197192,0.051529,96968.0,96967.0,0.05453]
[1733866199077,0.051529,96968.0,96967.0,0.001]
[1733866199078,0.412329,96968.0,96967.0,0.001]
[1733866199285,0.412329,96968.0,96967.0,0.002]
[1733866199476,0.712329,96968.0,96967.0,0.002]
[1733866199673,0.76245463,96968.0,96967.0,0.001]
[1733866199870,0.46245463,96968.0,96967.0,0.004]
[1733866200178,0.14420725,96973.0,96972.0,0.051526]
[1733866200374,0.051528,96973.0,96972.0,0.051526]
[1733866200572,0.52126839,96991.0,96972.0,0.051526]
[1733866200573,0.09267524,96983.0,96972.0,0.69348442]
[1733866200777,0.09267524,96997.0,96982.0,0.3608]
[1733866200970,0.46169571,96999.0,96994.0,0.24408845]
[1733866201176,0.42053347,96999.0,96998.0,0.051513]
[1733866201381,0.412313,96999.0,96998.0,0.051513]
[1733866201582,0.412313,96999.0,96994.0,0.24408845]
[1733866201583,0.051515,96995.0,96994.0,0.24408845]
[1733866201781,0.3608,96999.0,96993.0,0.29560345]
[1733866201782,0.051516,96994.0,96993.0,0.29560345]
[1733866201970,0.051516,96994.0,96993.0,0.051515]
[1733866202582,0.3608,96999.0,96998.0,0.051513]
[1733866203479,0.37315772,96999.0,96995.0,0.051515]
[1733866203684,0.051515,96996.0,96995.0,0.051515]
[1733866204179,0.051518,96990.0,96989.0,0.29560645]
[1733866204384,0.38175773,96999.0,96977.0,0.0008]
[1733866204385,0.051519,96987.0,96986.0,0.2955102]
[1733866204577,0.051517,96992.0,96991.0,0.051517]
[1733866204889,0.38015772,96999.0,96998.0,0.051513]
[1733866205283,0.36915772,96999.0,96998.0,0.051513]
[1733866205585,0.1,97000.0,96999.0,0.051513]
[1733866205787,0.00154735,97007.0,97006.0,0.051509]
[1733866205982,0.48433496,97026.0,97006.0,0.3608]
[1733866205983,0.09253449,97020.0,97006.0,0.3608]
[1733866206183,0.09253449,97025.0,97015.0,0.3608]
[1733866206488,0.051502,97019.0,97017.0,0.051503]
[1733866206783,0.051502,97019.0,97006.0,0.3608]
[1733866206784,0.0515,97023.0,97021.0,0.051501]
[1733866208489,0.0555,97023.0,97022.0,0.0645]
[1733866209288,0.0635,97023.0,97022.0,0.0645]
[1733866209784,0.0555,97023.0,97022.0,0.0645]
[1733866209989,0.0635,97023.0,97022.0,0.0655]
[1733866210187,0.0635,97023.0,97022.0,0.001]
[1733866210885,0.012,97023.0,97022.0,0.001]
[1733866211278,0.012,97023.0,97022.0,0.07534766]
[1733866211484,0.012,97023.0,97022.0,0.0669]
[1733866212285,0.3608,97034.0,97022.0,0.0669]
[1733866212499,0.3608,97034.0,97028.0,0.051497]
[1733866212500,0.051497,97030.0,97028.0,0.051497]
[1733866212799,0.051497,97030.0,97029.0,0.0624]
[1733866213185,0.00154631,97049.0,97028.0,0.3608]
[1733866213383,0.09253449,97058.0,97048.0,0.3608]
[1733866213693,0.17516699,97076.0,97048.0,0.3608]
[1733866213694,0.09253449,97070.0,97057.0,0.3608]
[1733866213894,0.09253449,97070.0,97048.0,0.3608]
[1733866213895,0.3608,97066.0,97048.0,0.3608]
[1733866214096,0.10207825,97060.0,97038.0,0.3608]
[1733866214580,0.10207825,97060.0,97046.0,0.3608]
[1733866214785,0.051487,97047.0,97046.0,0.3608]
[1733866215791,0.3608,97073.0,97046.0,0.3608]
[1733866215792,0.05148,97062.0,97055.0,0.051483]
[1733866215981,0.05148,97062.0,97061.0,0.3608]
[1733866216986,0.051476,97069.0,97063.0,0.051479]
[1733866217213,0.36132001,97077.0,97061.0,0.41228]
[1733866217492,0.051475,97071.0,97069.0,0.3608]
[1733866218686,0.051475,97071.0,97069.0,0.3618]
[1733866219293,0.00825338,97088.0,97074.0,0.051473]
[1733866219497,0.051469,97081.0,97080.0,0.3608]
[1733866220796,0.052469,97081.0,97080.0,0.3608]
[1733866221997,0.052469,97081.0,97080.0,0.3618]
[1733866223791,0.052469,97081.0,97080.0,0.001]
[1733866223989,0.052469,97081.0,97061.0,0.3608]
[1733866223990,0.051479,97062.0,97061.0,0.3608]
[1733866224393,0.051485,97051.0,97050.0,0.3608]
[1733866224593,0.3608,97076.0,97050.0,0.3608]
[1733866224797,0.05148,97062.0,97061.0,0.3608]
[1733866225092,0.00154613,97078.0,97061.0,0.3608]
[1733866225293,0.00154613,97078.0,97077.0,0.3608]
[1733866225495,0.00154613,97078.0,97074.0,0.051473]
[1733866225496,0.051472,97076.0,97074.0,0.051473]
[1733866225897,0.00154613,97078.0,97069.0,0.3608]
[1733866226097,0.051475,97071.0,97069.0,0.3608]
[1733866228094,0.053475,97071.0,97069.0,0.3618]
[1733866228490,0.051475,97070.0,97069.0,0.3618]
[1733866230301,0.413275,97070.0,97069.0,0.001]
[1733866230504,0.413275,97070.0,97042.0,0.3608]
[1733866230505,0.05149,97043.0,97042.0,0.3608]
[1733866230693,0.05149,97043.0,97042.0,0.41229]
[1733866232309,0.05149,97043.0,97042.0,0.41829]
[1733866233097,0.05149,97043.0,97042.0,0.41729]
[1733866233295,0.05149,97043.0,97042.0,0.41329]
[1733866233499,0.05149,97043.0,97042.0,0.41429]
[1733866234203,0.05149,97043.0,97042.0,0.3628]
[1733866234814,0.05149,97043.0,97042.0,0.002]
[1733866236399,0.3608,97049.0,97023.0,0.36087772]
[1733866236400,0.0515,97024.0,97023.0,0.36087772]
[1733866237000,0.0515,97024.0,97023.0,7.772e-05]
[1733866237905,0.0515,97024.0,97023.0,0.00507772]
[1733866238204,0.0515,97024.0,97023.0,0.01407772]
[1733866241314,0.00056001,97034.0,97023.0,0.01407772]
[1733866241502,0.051497,97030.0,97026.0,0.051498]
[1733866241704,0.051497,97030.0,97029.0,0.051497]
[1733866242305,0.051494,97036.0,97032.0,0.051495]
[1733866242804,0.051494,97035.0,97034.0,0.051494]
[1733866244810,0.00182117,97035.0,97034.0,0.412294]
[1733866245014,0.12353496,97059.0,97034.0,0.412294]
[1733866245015,0.051483,97056.0,97043.0,0.05149]
[1733866245319,0.051483,97056.0,97055.0,0.051483]
[1733866245710,0.05148,97061.0,97060.0,0.051481]
[1733866246208,0.53107825,97070.0,97055.0,0.051483]
[1733866246209,0.051482,97057.0,97055.0,0.051483]
[1733866246610,0.003,97056.0,97055.0,0.051483]
[1733866247910,0.005,97056.0,97055.0,0.051483]
[1733866248106,0.002,97056.0,97055.0,0.051483]
[1733866248814,0.004,97056.0,97055.0,0.051483]
[1733866249014,0.004,97056.0,97055.0,0.05999929]
[1733866250111,0.002,97056.0,97055.0,0.05999929]
[1733866250314,0.3608,97083.0,97055.0,0.00851629]
[1733866250611,0.00052001,97081.0,97074.0,0.3608]
[1733866250815,0.051473,97074.0,97070.0,0.412275]
[1733866251008,0.0723,97090.0,97070.0,0.412275]
[1733866251012,0.09253449,97086.0,97070.0,0.3608]
[1733866251204,0.0723,97090.0,97076.0,0.051472]